[Event "30e Open International de Saint Affrique"]
[Site "Saint Affrique, France"]
[Date "2024.07.24"]
[Round "6.1"]
[White "Degraeve, Jean-Marc"]
[Black "Ciarletta, Ulysse"]
[Result "1-0"]
[TimeControl "1h30/40 + 30min + sec/mv"]
[WhiteTitle "GM"]
[WhiteElo "2480"]
[BlackElo "2139"]

1. e4 {[%clk 01:30:56]} {[%emt 00:00:03]} c5 {[%clk 01:30:27]} {[%emt
00:00:33]} 2. Nf3 {[%clk 01:31:04]} {[%emt 00:00:22]} Nc6 {[%clk 01:30:42]}
{[%emt 00:00:15]} 3. Bb5 {[%clk 01:31:26]} {[%emt 00:00:08]} e6 {[%clk
01:30:52]} {[%emt 00:00:20]} 4. O-O {[%clk 01:31:27]} {[%emt 00:00:30]} Nge7
{[%clk 01:31:07]} {[%emt 00:00:15]} 5. Re1 {[%clk 01:31:51]} {[%emt 00:00:06]}
Nd4 {[%clk 01:30:47]} {[%emt 00:00:50]} 6. Nxd4 {[%clk 01:31:56]} {[%emt
00:00:25]} cxd4 {[%clk 01:31:05]} {[%emt 00:00:12]} 7. c3 {[%clk 01:31:42]}
{[%emt 00:00:44]} Nc6 {[%clk 01:30:03]} {[%emt 00:01:32]} 8. Bxc6 {[%clk
01:21:12]} {[%emt 00:11:00]} dxc6 {[%clk 01:30:10]} {[%emt 00:00:22]} 9. cxd4
{[%clk 01:21:36]} {[%emt 00:00:06]} Qxd4 {[%clk 01:30:17]} {[%emt 00:00:23]} 10.
e5 {[%clk 01:21:50]} {[%emt 00:00:16]} b6 {[%clk 01:24:13]} {[%emt 00:06:33]}
11. Nc3 {[%clk 01:22:10]} {[%emt 00:00:11]} Be7 {[%clk 01:22:08]} {[%emt
00:02:34]} 12. Re4 {[%clk 01:20:48]} {[%emt 00:01:52]} Qd7 {[%clk 01:19:29]}
{[%emt 00:03:10]} 13. d4 {[%clk 01:20:42]} {[%emt 00:00:36]} Bb7 {[%clk
01:19:45]} {[%emt 00:00:13]} 14. Rg4 {[%clk 01:20:37]} {[%emt 00:00:34]} g6
{[%clk 01:13:13]} {[%emt 00:07:03]} 15. Bg5 {[%clk 01:18:26]} {[%emt 00:02:41]}
h5 {[%clk 01:12:10]} {[%emt 00:01:32]} 16. Bxe7 {[%clk 01:12:12]} {[%emt
00:06:45]} Qxe7 {[%clk 01:07:02]} {[%emt 00:05:39]} 17. Rf4 {[%clk 01:09:36]}
{[%emt 00:03:06]} g5 {[%clk 01:06:24]} {[%emt 00:01:09]} 18. Rf3 {[%clk
01:09:30]} {[%emt 00:00:36]} g4 {[%clk 01:00:08]} {[%emt 00:06:45]} 19. Rf4
{[%clk 01:08:07]} {[%emt 00:01:54]} O-O-O {[%clk 00:59:56]} {[%emt 00:00:41]}
20. Ne4 {[%clk 01:05:55]} {[%emt 00:02:42]} Kb8 {[%clk 01:00:05]} {[%emt
00:00:22]} 21. a3 {[%clk 01:03:43]} {[%emt 00:02:43]} Qd7 {[%clk 00:54:44]}
{[%emt 00:05:49]} 22. Nf6 {[%clk 00:56:39]} {[%emt 00:07:36]} Qc7 {[%clk
00:54:28]} {[%emt 00:00:45]} 23. Rc1 {[%clk 00:53:27]} {[%emt 00:03:42]} c5
{[%clk 00:46:05]} {[%emt 00:08:54]} 24. Qf1 {[%clk 00:53:22]} {[%emt 00:00:35]}
Bd5 {[%clk 00:38:03]} {[%emt 00:08:32]} 25. dxc5 {[%clk 00:49:47]} {[%emt
00:04:05]} Qxe5 {[%clk 00:35:03]} {[%emt 00:03:30]} 26. Nxd5 {[%clk 00:49:39]}
{[%emt 00:00:38]} Rxd5 {[%clk 00:35:07]} {[%emt 00:00:26]} 27. Rxf7 {[%clk
00:49:50]} {[%emt 00:00:20]} Rxc5 {[%clk 00:34:26]} {[%emt 00:01:12]} 28. Rxc5
{[%clk 00:44:22]} {[%emt 00:05:57]} Qxc5 {[%clk 00:34:40]} {[%emt 00:00:15]} 29.
h4 {[%clk 00:42:01]} {[%emt 00:02:51]} g3 {[%clk 00:24:06]} {[%emt 00:11:05]}
30. Kh1 {[%clk 00:41:29]} {[%emt 00:01:03]} gxf2 {[%clk 00:22:26]} {[%emt
00:02:09]} 31. Qxf2 {[%clk 00:41:52]} {[%emt 00:00:07]} Qxf2 {[%clk 00:13:04]}
{[%emt 00:09:52]} 32. Rxf2 {[%clk 00:42:04]} {[%emt 00:00:18]} Rd8 {[%clk
00:12:32]} {[%emt 00:01:02]} 33. Re2 {[%clk 00:41:04]} {[%emt 00:01:31]} Rd4
{[%clk 00:09:21]} {[%emt 00:03:40]} 34. g3 {[%clk 00:40:29]} {[%emt 00:01:05]}
a5 {[%clk 00:07:52]} {[%emt 00:02:00]} 35. Re5 {[%clk 00:36:53]} {[%emt
00:04:06]} Rd2 {[%clk 00:07:31]} {[%emt 00:00:51]} 36. Rxh5 {[%clk 00:37:07]}
{[%emt 00:00:16]} Rxb2 {[%clk 00:06:12]} {[%emt 00:01:50]} 37. g4 {[%clk
00:36:55]} {[%emt 00:00:42]} Kc7 {[%clk 00:04:46]} {[%emt 00:01:56]} 38. g5
{[%clk 00:36:43]} {[%emt 00:00:42]} Kd6 {[%clk 00:03:59]} {[%emt 00:01:17]} 39.
g6 {[%clk 00:31:56]} {[%emt 00:05:17]} Ke7 {[%clk 00:03:53]} {[%emt 00:00:36]}
40. Rh7+ {[%clk 00:31:35]} {[%emt 00:00:50]} Kf8 {[%clk 00:03:57]} {[%emt
00:00:26]} 41. h5 {[%clk 00:31:51]} {[%emt 00:00:15]} Kg8 {[%clk 00:01:53]}
{[%emt 00:02:34]} 42. h6 {[%clk 00:27:58]} {[%emt 00:04:22]} Rb5 {[%clk
00:01:33]} {[%emt 00:00:51]} 43. Rg7+ {[%clk 00:28:17]} {[%emt 00:00:11]} Kh8
{[%clk 00:01:54]} {[%emt 00:00:08]} 44. Kg2 {[%clk 00:28:39]} {[%emt 00:00:09]}
Rh5 {[%clk 00:01:49]} {[%emt 00:00:34]} 45. Rh7+ {[%clk 00:29:03]} {[%emt
00:00:06]} Kg8 {[%clk 00:02:11]} {[%emt 00:00:08]} 46. Kf3 {[%clk 00:29:19]}
{[%emt 00:00:15]} b5 {[%clk 00:27:57]} {[%emt 00:04:45]} 47. Kg4 {[%clk
00:57:47]} {[%emt 00:02:02]} Rh1 {[%clk 00:28:05]} {[%emt 00:00:21]} 48. Kg5
{[%clk 00:57:51]} {[%emt 00:00:26]} Rg1+ {[%clk 00:24:47]} {[%emt 00:03:48]} 49.
Kf6 {[%clk 00:58:04]} {[%emt 00:00:16]} Rf1+ {[%clk 00:25:09]} {[%emt
00:00:09]} 50. Ke7 {[%clk 00:58:30]} {[%emt 00:00:04]} Rh1 {[%clk 00:23:02]}
{[%emt 00:02:36]} 51. Rg7+ {[%clk 00:58:54]} {[%emt 00:00:06]} Kh8 {[%clk
00:23:15]} {[%emt 00:00:17]} 52. Kf8 {[%clk 00:59:22]} {[%emt 00:00:02]} 1-0

[Event "30e Open International de Saint Affrique"]
[Site "Saint Affrique, France"]
[Date "2024.07.24"]
[Round "6.2"]
[White "Flear, Glenn"]
[Black "Le Roux, Jean-Pierre"]
[Result "1/2-1/2"]
[TimeControl "1h30/40 + 30min + sec/mv"]
[WhiteTitle "GM"]
[BlackTitle "GM"]
[WhiteElo "2390"]
[BlackElo "2480"]

1. d4 {[%clk 01:30:55]} {[%emt 00:00:03]} g6 {[%clk 01:25:35]} {[%emt
00:05:27]} 2. e4 {[%clk 01:30:58]} {[%emt 00:00:26]} Bg7 {[%clk 01:25:59]}
{[%emt 00:00:06]} 3. c4 {[%clk 01:31:16]} {[%emt 00:00:13]} c5 {[%clk
01:26:25]} {[%emt 00:00:05]} 4. d5 {[%clk 01:31:14]} {[%emt 00:00:31]} d6
{[%clk 01:26:50]} {[%emt 00:00:06]} 5. Nc3 {[%clk 01:31:31]} {[%emt 00:00:13]}
e6 {[%clk 01:26:56]} {[%emt 00:00:24]} 6. Bf4 {[%clk 01:20:49]} {[%emt
00:11:12]} Nf6 {[%clk 01:08:21]} {[%emt 00:19:05]} 7. Nf3 {[%clk 01:13:39]}
{[%emt 00:07:40]} exd5 {[%clk 01:05:21]} {[%emt 00:03:31]} 8. cxd5 {[%clk
01:12:57]} {[%emt 00:01:11]} O-O {[%clk 00:52:50]} {[%emt 00:13:01]} 9. Nd2
{[%clk 01:12:58]} {[%emt 00:00:28]} Ng4 {[%clk 00:46:25]} {[%emt 00:06:56]} 10.
Be2 {[%clk 01:03:39]} {[%emt 00:09:50]} Ne5 {[%clk 00:44:27]} {[%emt 00:02:28]}
11. O-O {[%clk 01:03:14]} {[%emt 00:00:54]} Na6 {[%clk 00:32:30]} {[%emt
00:12:29]} 12. Nc4 {[%clk 00:48:56]} {[%emt 00:14:49]} Nxc4 {[%clk 00:31:20]}
{[%emt 00:01:38]} 13. Bxc4 {[%clk 00:46:43]} {[%emt 00:02:43]} Nc7 {[%clk
00:31:37]} {[%emt 00:00:12]} 14. a4 {[%clk 00:45:59]} {[%emt 00:01:14]} Rb8
{[%clk 00:23:48]} {[%emt 00:08:20]} 15. Qd3 {[%clk 00:44:13]} {[%emt 00:02:15]}
h5 {[%clk 00:18:57]} {[%emt 00:05:21]} 16. Rfe1 {[%clk 00:41:03]} {[%emt
00:03:40]} Re8 {[%clk 00:14:36]} {[%emt 00:04:52]} 17. Rab1 {[%clk 00:39:55]}
{[%emt 00:01:37]} Qf6 {[%clk 00:10:29]} {[%emt 00:04:38]} 18. Qg3 {[%clk
00:28:36]} {[%emt 00:11:49]} h4 {[%clk 00:10:24]} {[%emt 00:00:35]} 19. Qg5
{[%clk 00:28:49]} {[%emt 00:00:17]} Qxg5 {[%clk 00:09:12]} {[%emt 00:01:42]} 20.
Bxg5 {[%clk 00:29:12]} {[%emt 00:00:06]} a6 {[%clk 00:07:46]} {[%emt 00:01:58]}
21. Bxh4 {[%clk 00:14:51]} {[%emt 00:14:51]} b5 {[%clk 00:08:13]} {[%emt
00:00:03]} 22. Bf1 {[%clk 00:13:30]} {[%emt 00:01:52]} bxa4 {[%clk 00:06:39]}
{[%emt 00:02:06]} 23. Nxa4 {[%clk 00:13:07]} {[%emt 00:00:50]} Bd7 {[%clk
00:05:58]} {[%emt 00:01:11]} 24. Nc3 {[%clk 00:09:36]} {[%emt 00:04:01]} Bxc3
{[%clk 00:02:03]} {[%emt 00:04:26]} 25. bxc3 {[%clk 00:09:39]} {[%emt
00:00:27]} Rxb1 {[%clk 00:02:30]} {[%emt 00:00:03]} 26. Rxb1 {[%clk 00:10:02]}
{[%emt 00:00:06]} Rxe4 {[%clk 00:02:58]} {[%emt 00:00:02]} 27. Bg3 {[%clk
00:09:35]} {[%emt 00:00:56]} Nxd5 {[%clk 00:02:48]} {[%emt 00:00:41]} 28. Bxd6
{[%clk 00:07:05]} {[%emt 00:03:02]} Nxc3 {[%clk 00:02:17]} {[%emt 00:00:59]} 29.
Rb8+ {[%clk 00:06:14]} {[%emt 00:01:21]} Kg7 {[%clk 00:01:32]} {[%emt
00:01:15]} 30. f3 {[%clk 00:05:47]} {[%emt 00:00:58]} Re1 {[%clk 00:00:33]}
{[%emt 00:01:28]} 31. Kf2 {[%clk 00:05:52]} {[%emt 00:00:22]} Re6 {[%clk
00:00:44]} {[%emt 00:00:21]} 32. Bxc5 {[%clk 00:05:04]} {[%emt 00:01:18]} Nd1+
{[%clk 00:00:58]} {[%emt 00:00:16]} 33. Kg3 {[%clk 00:05:01]} {[%emt 00:00:30]}
Bb5 {[%clk 00:00:33]} {[%emt 00:00:57]} 34. Bd4+ {[%clk 00:03:31]} {[%emt
00:01:59]} f6 {[%clk 00:00:55]} {[%emt 00:00:10]} 35. Bxb5 {[%clk 00:03:08]}
{[%emt 00:00:53]} axb5 {[%clk 00:01:22]} {[%emt 00:00:03]} 36. Rxb5 {[%clk
00:03:12]} {[%emt 00:00:25]} Ne3 {[%clk 00:01:36]} {[%emt 00:00:17]} 37. Rb7+
{[%clk 00:03:16]} {[%emt 00:00:25]} Kg8 {[%clk 00:01:59]} {[%emt 00:00:07]} 38.
Bxe3 {[%clk 00:03:32]} {[%emt 00:00:15]} Rxe3 {[%clk 00:02:25]} {[%emt
00:00:04]} 39. h4 {[%clk 00:03:41]} {[%emt 00:00:20]} Re2 {[%clk 00:02:35]}
{[%emt 00:00:20]} 40. Kh3 {[%clk 00:03:55]} {[%emt 00:00:16]} Re5 {[%clk
00:01:00]} {[%emt 00:02:06]} 41. g4 {[%clk 00:03:18]} {[%emt 00:01:07]} Rd5
{[%clk 00:27:49]} {[%emt 00:03:41]} 42. Kg3 {[%clk 00:33:39]} {[%emt 00:00:09]}
Rc5 {[%clk 00:28:16]} {[%emt 00:00:03]} 43. Rd7 {[%clk 00:33:51]} {[%emt
00:00:17]} Rb5 {[%clk 00:28:11]} {[%emt 00:00:35]} 44. Kf4 {[%clk 00:33:30]}
{[%emt 00:00:51]} Re5 {[%clk 00:24:25]} {[%emt 00:04:18]} 45. Rc7 {[%clk
00:31:00]} {[%emt 00:03:04]} Kf8 {[%clk 00:23:44]} {[%emt 00:01:07]} 46. Rd7
{[%clk 00:30:23]} {[%emt 00:00:20]} 1/2-1/2

[Event "30e Open International de Saint Affrique"]
[Site "Saint Affrique, France"]
[Date "2024.07.24"]
[Round "6.3"]
[White "Travadon, Loic"]
[Black "Siva Kumar, Nirish"]
[Result "1/2-1/2"]
[TimeControl "1h30/40 + 30min + sec/mv"]
[WhiteTitle "IM"]
[WhiteElo "2458"]
[BlackElo "1954"]

1. d4 {[%clk 01:30:43]} {[%emt 00:00:16]} d5 {[%clk 01:30:50]} {[%emt
00:00:10]} 2. Bf4 {[%clk 01:29:52]} {[%emt 00:01:21]} c5 {[%clk 01:31:10]}
{[%emt 00:00:10]} 3. e3 {[%clk 01:29:58]} {[%emt 00:00:24]} Nc6 {[%clk
01:30:42]} {[%emt 00:00:58]} 4. Nf3 {[%clk 01:30:11]} {[%emt 00:00:17]} Nf6
{[%clk 01:29:51]} {[%emt 00:01:21]} 5. Nbd2 {[%clk 01:30:29]} {[%emt 00:00:12]}
cxd4 {[%clk 01:29:52]} {[%emt 00:00:30]} 6. exd4 {[%clk 01:30:51]} {[%emt
00:00:07]} Bf5 {[%clk 01:29:37]} {[%emt 00:00:45]} 7. c3 {[%clk 01:31:06]}
{[%emt 00:00:16]} e6 {[%clk 01:28:40]} {[%emt 00:01:27]} 8. Be2 {[%clk
01:29:38]} {[%emt 00:01:57]} Bd6 {[%clk 01:27:40]} {[%emt 00:01:30]} 9. Bxd6
{[%clk 01:29:59]} {[%emt 00:00:10]} Qxd6 {[%clk 01:28:06]} {[%emt 00:00:05]} 10.
O-O {[%clk 01:30:10]} {[%emt 00:00:18]} O-O {[%clk 01:25:13]} {[%emt 00:03:23]}
11. Nh4 {[%clk 01:30:01]} {[%emt 00:00:38]} Bg6 {[%clk 01:15:03]} {[%emt
00:10:40]} 12. Nxg6 {[%clk 01:25:10]} {[%emt 00:05:21]} hxg6 {[%clk 01:15:28]}
{[%emt 00:00:05]} 13. f4 {[%clk 01:25:32]} {[%emt 00:00:07]} a6 {[%clk
01:12:45]} {[%emt 00:03:14]} 14. Bd3 {[%clk 01:22:07]} {[%emt 00:03:56]} b5
{[%clk 01:06:52]} {[%emt 00:06:23]} 15. a3 {[%clk 01:22:04]} {[%emt 00:00:32]}
Na5 {[%clk 01:06:07]} {[%emt 00:01:37]} 16. g4 {[%clk 01:13:38]} {[%emt
00:08:35]} Rab8 {[%clk 01:02:09]} {[%emt 00:04:28]} 17. b4 {[%clk 01:12:26]}
{[%emt 00:01:42]} Nc4 {[%clk 01:02:28]} {[%emt 00:00:12]} 18. Bxc4 {[%clk
01:12:20]} {[%emt 00:00:35]} dxc4 {[%clk 00:58:09]} {[%emt 00:04:50]} 19. Qf3
{[%clk 01:06:37]} {[%emt 00:06:12]} a5 {[%clk 00:51:13]} {[%emt 00:07:26]} 20.
Rae1 {[%clk 01:07:00]} {[%emt 00:00:06]} axb4 {[%clk 00:50:39]} {[%emt
00:01:06]} 21. axb4 {[%clk 01:07:23]} {[%emt 00:00:06]} Ra8 {[%clk 00:49:05]}
{[%emt 00:02:04]} 22. Re5 {[%clk 01:04:20]} {[%emt 00:03:34]} Ra2 {[%clk
00:49:07]} {[%emt 00:00:28]} 23. Ne4 {[%clk 01:03:14]} {[%emt 00:01:36]} Nxe4
{[%clk 00:49:26]} {[%emt 00:00:11]} 24. Qxe4 {[%clk 01:03:37]} {[%emt
00:00:06]} Qa6 {[%clk 00:42:25]} {[%emt 00:07:32]} 25. f5 {[%clk 01:03:27]}
{[%emt 00:00:40]} Qa3 {[%clk 00:40:20]} {[%emt 00:02:34]} 26. Qf3 {[%clk
00:59:36]} {[%emt 00:04:21]} Ra1 {[%clk 00:35:08]} {[%emt 00:05:43]} 27. Rxb5
{[%clk 00:58:35]} {[%emt 00:01:31]} Rxf1+ {[%clk 00:35:29]} {[%emt 00:00:09]}
28. Kxf1 {[%clk 00:58:59]} {[%emt 00:00:05]} Qc1+ {[%clk 00:35:46]} {[%emt
00:00:13]} 29. Kg2 {[%clk 00:59:17]} {[%emt 00:00:12]} Qd2+ {[%clk 00:35:21]}
{[%emt 00:00:55]} 30. Kg3 {[%clk 00:58:40]} {[%emt 00:01:07]} exf5 {[%clk
00:34:46]} {[%emt 00:01:06]} 31. gxf5 {[%clk 00:57:40]} {[%emt 00:01:30]} Qg5+
{[%clk 00:34:54]} {[%emt 00:00:21]} 32. Kh3 {[%clk 00:57:42]} {[%emt 00:00:28]}
Qh6+ {[%clk 00:35:14]} {[%emt 00:00:10]} 33. Kg2 {[%clk 00:54:40]} {[%emt
00:03:31]} Qd2+ {[%clk 00:35:37]} {[%emt 00:00:08]} 34. Kh3 {[%clk 00:54:50]}
{[%emt 00:00:18]} Qh6+ {[%clk 00:36:03]} {[%emt 00:00:05]} 35. Kg2 {[%clk
00:55:08]} {[%emt 00:00:12]} Qd2+ {[%clk 00:36:29]} {[%emt 00:00:05]} 36. Kh3
{[%clk 00:55:21]} {[%emt 00:00:17]} Qh6+ {[%clk 00:36:55]} {[%emt 00:00:05]} 37.
Kg3 {[%clk 00:55:22]} {[%emt 00:00:28]} Qg5+ {[%clk 00:37:00]} {[%emt
00:00:24]} 38. Kh3 {[%clk 00:55:37]} {[%emt 00:00:15]} Qh6+ {[%clk 00:37:26]}
{[%emt 00:00:05]} 39. Kg2 {[%clk 00:55:52]} {[%emt 00:00:15]} Qd2+ {[%clk
00:37:52]} {[%emt 00:00:05]} 1/2-1/2

[Event "30e Open International de Saint Affrique"]
[Site "Saint Affrique, France"]
[Date "2024.07.24"]
[Round "6.4"]
[White "Martinez, Felicien"]
[Black "Kim, Jisu"]
[Result "0-1"]
[TimeControl "1h30/40 + 30min + sec/mv"]
[WhiteElo "1995"]
[BlackElo "2077"]

1. a3 {[%clk 01:30:53]} {[%emt 00:00:06]} d5 {[%clk 01:30:39]} {[%emt
00:00:22]} 2. d4 {[%clk 01:31:16]} {[%emt 00:00:08]} Bf5 {[%clk 01:30:48]}
{[%emt 00:00:20]} 3. Nf3 {[%clk 01:30:47]} {[%emt 00:00:59]} e6 {[%clk
01:31:02]} {[%emt 00:00:15]} 4. e3 {[%clk 01:28:01]} {[%emt 00:03:17]} Bd6
{[%clk 01:29:47]} {[%emt 00:01:45]} 5. c4 {[%clk 01:27:52]} {[%emt 00:00:39]}
c6 {[%clk 01:29:01]} {[%emt 00:01:16]} 6. Nc3 {[%clk 01:26:00]} {[%emt
00:02:22]} Nf6 {[%clk 01:28:15]} {[%emt 00:01:15]} 7. Nh4 {[%clk 01:24:51]}
{[%emt 00:01:40]} Bg4 {[%clk 01:25:55]} {[%emt 00:02:49]} 8. f3 {[%clk
01:24:09]} {[%emt 00:01:13]} Bh5 {[%clk 01:26:02]} {[%emt 00:00:23]} 9. g3
{[%clk 01:24:17]} {[%emt 00:00:22]} O-O {[%clk 01:23:31]} {[%emt 00:03:01]} 10.
Bd3 {[%clk 01:22:18]} {[%emt 00:02:28]} Nbd7 {[%clk 01:20:47]} {[%emt
00:03:14]} 11. cxd5 {[%clk 01:22:36]} {[%emt 00:00:12]} cxd5 {[%clk 01:20:16]}
{[%emt 00:01:01]} 12. O-O {[%clk 01:20:33]} {[%emt 00:02:33]} Rc8 {[%clk
01:18:31]} {[%emt 00:02:15]} 13. Qb3 {[%clk 01:16:54]} {[%emt 00:04:09]} Qb6
{[%clk 01:09:18]} {[%emt 00:09:44]} 14. Qxb6 {[%clk 01:12:33]} {[%emt
00:04:51]} Nxb6 {[%clk 01:04:39]} {[%emt 00:05:09]} 15. e4 {[%clk 01:02:00]}
{[%emt 00:11:04]} Be7 {[%clk 01:01:42]} {[%emt 00:03:27]} 16. e5 {[%clk
00:54:19]} {[%emt 00:08:10]} Nfd7 {[%clk 00:57:04]} {[%emt 00:05:09]} 17. f4
{[%clk 00:50:10]} {[%emt 00:04:39]} f5 {[%clk 00:47:11]} {[%emt 00:10:28]} 18.
Ng2 {[%clk 00:45:29]} {[%emt 00:05:06]} Nc4 {[%clk 00:45:18]} {[%emt 00:02:22]}
19. Bxc4 {[%clk 00:41:19]} {[%emt 00:04:41]} Rxc4 {[%clk 00:45:26]} {[%emt
00:00:22]} 20. Ne3 {[%clk 00:40:47]} {[%emt 00:01:01]} Rxd4 {[%clk 00:42:08]}
{[%emt 00:03:50]} 21. Nb5 {[%clk 00:28:51]} {[%emt 00:12:26]} Rd3 {[%clk
00:41:14]} {[%emt 00:01:24]} 22. Nc7 {[%clk 00:22:28]} {[%emt 00:06:53]} Bc5
{[%clk 00:38:29]} {[%emt 00:03:15]} 23. Nxe6 {[%clk 00:16:07]} {[%emt
00:06:50]} Bxe3+ {[%clk 00:33:35]} {[%emt 00:05:26]} 24. Bxe3 {[%clk 00:16:31]}
{[%emt 00:00:06]} Rxe3 {[%clk 00:32:59]} {[%emt 00:01:05]} 25. Nxf8 {[%clk
00:16:27]} {[%emt 00:00:35]} Nxf8 {[%clk 00:32:44]} {[%emt 00:00:45]} 26. Rac1
{[%clk 00:16:15]} {[%emt 00:00:42]} Be8 {[%clk 00:32:25]} {[%emt 00:00:49]} 27.
g4 {[%clk 00:11:43]} {[%emt 00:05:03]} fxg4 {[%clk 00:29:36]} {[%emt 00:03:19]}
28. Rc7 {[%clk 00:11:46]} {[%emt 00:00:27]} Bc6 {[%clk 00:15:45]} {[%emt
00:14:22]} 29. b4 {[%clk 00:09:10]} {[%emt 00:03:06]} Ng6 {[%clk 00:11:05]}
{[%emt 00:05:09]} 30. e6 {[%clk 00:08:14]} {[%emt 00:01:26]} Kf8 {[%clk
00:08:10]} {[%emt 00:03:26]} 31. Rf7+ {[%clk 00:07:47]} {[%emt 00:00:57]} Ke8
{[%clk 00:07:16]} {[%emt 00:01:24]} 32. Rxg7 {[%clk 00:07:33]} {[%emt
00:00:44]} Rxe6 {[%clk 00:04:51]} {[%emt 00:02:54]} 33. f5 {[%clk 00:07:41]}
{[%emt 00:00:21]} Re7 {[%clk 00:05:11]} {[%emt 00:00:10]} 34. f6 {[%clk
00:03:32]} {[%emt 00:04:39]} Rf7 {[%clk 00:04:45]} {[%emt 00:00:56]} 35. Rg8+
{[%clk 00:03:30]} {[%emt 00:00:32]} Kd7 {[%clk 00:04:45]} {[%emt 00:00:30]} 36.
Rg7 {[%clk 00:03:46]} {[%emt 00:00:15]} Ke6 {[%clk 00:04:04]} {[%emt 00:01:11]}
37. Re1+ {[%clk 00:04:06]} {[%emt 00:00:09]} Kxf6 {[%clk 00:04:28]} {[%emt
00:00:06]} 38. Rxf7+ Kxf7 0-1

[Event "30e Open International de Saint Affrique"]
[Site "Saint Affrique, France"]
[Date "2024.07.24"]
[Round "6.5"]
[White "Genkeswaran, Genivan"]
[Black "Gibaud, Elian"]
[Result "1/2-1/2"]
[TimeControl "1h30/40 + 30min + sec/mv"]
[WhiteElo "1994"]
[BlackElo "2061"]

1. d4 {[%clk 01:27:33]} {[%emt 00:03:25]} Nf6 {[%clk 01:30:50]} {[%emt
00:00:10]} 2. c4 {[%clk 01:27:38]} {[%emt 00:00:26]} e6 {[%clk 01:31:11]}
{[%emt 00:00:09]} 3. Nc3 {[%clk 01:27:44]} {[%emt 00:00:24]} Bb4 {[%clk
01:31:29]} {[%emt 00:00:11]} 4. e3 {[%clk 01:27:50]} {[%emt 00:00:24]} O-O
{[%clk 01:31:42]} {[%emt 00:00:17]} 5. Nge2 {[%clk 01:27:01]} {[%emt 00:01:19]}
d5 {[%clk 01:31:40]} {[%emt 00:00:32]} 6. a3 {[%clk 01:27:09]} {[%emt
00:00:22]} Be7 {[%clk 01:31:56]} {[%emt 00:00:14]} 7. cxd5 {[%clk 01:27:31]}
{[%emt 00:00:09]} exd5 {[%clk 01:32:18]} {[%emt 00:00:07]} 8. Nf4 {[%clk
01:27:58]} {[%emt 00:00:04]} c6 {[%clk 01:32:08]} {[%emt 00:00:39]} 9. Bd3
{[%clk 01:26:43]} {[%emt 00:01:45]} Na6 {[%clk 01:31:24]} {[%emt 00:01:14]} 10.
O-O {[%clk 01:26:07]} {[%emt 00:01:05]} Nc7 {[%clk 01:31:30]} {[%emt 00:00:25]}
11. h3 {[%clk 01:21:00]} {[%emt 00:05:37]} Ne6 {[%clk 01:27:04]} {[%emt
00:04:56]} 12. Nxe6 {[%clk 01:16:21]} {[%emt 00:05:10]} Bxe6 {[%clk 01:26:27]}
{[%emt 00:01:06]} 13. Ne2 {[%clk 01:15:59]} {[%emt 00:00:52]} Qd7 {[%clk
01:19:55]} {[%emt 00:07:02]} 14. Nf4 {[%clk 01:14:27]} {[%emt 00:02:02]} Bf5
{[%clk 01:17:56]} {[%emt 00:02:29]} 15. Re1 {[%clk 01:06:13]} {[%emt 00:08:45]}
Bd6 {[%clk 01:15:52]} {[%emt 00:02:33]} 16. Qc2 {[%clk 01:02:14]} {[%emt
00:04:30]} Bxd3 {[%clk 01:13:25]} {[%emt 00:02:56]} 17. Nxd3 {[%clk 01:02:31]}
{[%emt 00:00:13]} Bc7 {[%clk 01:06:28]} {[%emt 00:07:28]} 18. b4 {[%clk
00:59:08]} {[%emt 00:03:53]} Ne4 {[%clk 01:01:25]} {[%emt 00:05:32]} 19. Nc5
{[%clk 00:56:57]} {[%emt 00:02:42]} Qd6 {[%clk 00:53:43]} {[%emt 00:08:12]} 20.
Nxe4 {[%clk 00:38:44]} {[%emt 00:18:43]} dxe4 {[%clk 00:40:43]} {[%emt
00:13:30]} 21. Qxe4 {[%clk 00:38:32]} {[%emt 00:00:42]} Rae8 {[%clk 00:40:37]}
{[%emt 00:00:35]} 22. Qg4 {[%clk 00:34:41]} {[%emt 00:04:21]} f5 {[%clk
00:39:03]} {[%emt 00:02:05]} 23. Qf3 {[%clk 00:31:07]} {[%emt 00:04:04]} Qxd4
{[%clk 00:38:01]} {[%emt 00:01:32]} 24. Rb1 {[%clk 00:31:01]} {[%emt 00:00:36]}
Qe4 {[%clk 00:35:45]} {[%emt 00:02:45]} 25. Qxe4 {[%clk 00:31:05]} {[%emt
00:00:26]} Re7 {[%emt 00:00:31]} 26. Qe5 Rxe5 {[%clk 00:35:44]} 27. Bb2 {[%clk
00:30:34]} {[%emt 00:01:01]} Re4 {[%clk 00:34:17]} 28. Rbc1 {[%emt 00:03:00]}
Rd8 29. Rcd1 {[%clk 00:30:01]} Ree8 {[%clk 00:32:12]} {[%emt 00:02:35]} 30. Bd4
{[%emt 00:05:26]} Bb6 {[%clk 00:29:16]} 31. Bxb6 {[%clk 00:27:48]} {[%emt
00:01:14]} axb6 {[%clk 00:28:47]} {[%emt 00:00:58]} 32. Kf1 {[%clk 00:27:56]}
{[%emt 00:00:22]} Kf7 {[%clk 00:28:58]} {[%emt 00:00:19]} 1/2-1/2

[ePGN "0.1;DGT LiveChess/2.2.6"]